Workbook

Sheet Investment Analysis
A1: 150 E HOLT BLVD. ONTARIO, CA 91761
A2: Building Size: | C2: 58000 | F2: Annual Rental Increase | H2: 0.02
A3: Purchase Price: | C3: 23000000 | D3: =C3/C2 -> 396.5517241 | F3: Annual OpEx Increase | H3: 0.02
A4: Going In CAP Rate: | C4: =C29/C3 -> 0.05009852174
B6: Monthly | C6: Year 1 | D6: Year 2 | E6: Year 3 | F6: Year 4 | G6: Year 5 | H6: Year 6 | I6: Year 7 | J6: Year 8 | K6: Year 9 | L6: Year 10
A7: Rental Income | B7: =C7/12 -> 143087 | C7: 1717044 | D7: =C7*(1+$H$2) -> 1751384.88 | E7: 1786412.578 | F7: 1822140.829 | G7: 1858583.646 | H7: 1895755.319 | I7: 1933670.425 | J7: 1972343.834 | K7: 2011790.71 | L7: 2052026.524
A9: Operating Expenses:
A10: New Property Taxes | B10: =C10/12 -> 22233.33333 | C10: =C3*1.16% -> 266800 | D10: =C10*(1+$H$3) -> 272136 | E10: 277578.72 | F10: 283130.2944 | G10: 288792.9003 | H10: 294568.7583 | I10: 300460.1335 | J10: 306469.3361 | K10: 312598.7229 | L10: 318850.6973
A11: Insurance | B11: 1546.666667 | C11: 18560 | D11: =C11*(1+$H$3) -> 18931.2 | E11: 19309.824 | F11: 19696.02048 | G11: 20089.94089 | H11: 20491.73971 | I11: 20901.5745 | J11: 21319.60599 | K11: 21745.99811 | L11: 22180.91807
A12: Repairs & Maintenance | B12: 2791.666667 | C12: 33500 | D12: =C12*(1+$H$3) -> 34170 | E12: 34853.4 | F12: 35550.468 | G12: 36261.47736 | H12: 36986.70691 | I12: 37726.44105 | J12: 38480.96987 | K12: 39250.58926 | L12: 40035.60105
A13: Janitorial Service | B13: 7047 | C13: 84564 | D13: =C13*(1+$H$3) -> 86255.28 | E13: 87980.3856 | F13: 89739.99331 | G13: 91534.79318 | H13: 93365.48904 | I13: 95232.79882 | J13: 97137.4548 | K13: 99080.2039 | L13: 101061.808
A14: Janitorial Supply | B14: 1554.166667 | C14: 18650 | D14: =C14*(1+$H$3) -> 19023 | E14: 19403.46 | F14: 19791.5292 | G14: 20187.35978 | H14: 20591.10698 | I14: 21002.92912 | J14: 21422.9877 | K14: 21851.44746 | L14: 22288.4764
A15: Elevator Maint. | B15: 750 | C15: 9000 | D15: =C15*(1+$H$3) -> 9180 | E15: 9363.6 | F15: 9550.872 | G15: 9741.88944 | H15: 9936.727229 | I15: 10135.46177 | J15: 10338.17101 | K15: 10544.93443 | L15: 10755.83312
A16: HVAC Maint. | B16: 2416.666667 | C16: 29000 | D16: =C16*(1+$H$3) -> 29580 | E16: 30171.6 | F16: 30775.032 | G16: 31390.53264 | H16: 32018.34329 | I16: 32658.71016 | J16: 33311.88436 | K16: 33978.12205 | L16: 34657.68449
A17: Fire Alarm & Security | B17: 65 | C17: 780 | D17: =C17*(1+$H$3) -> 795.6 | E17: 811.512 | F17: 827.74224 | G17: 844.2970848 | H17: 861.1830265 | I17: 878.406687 | J17: 895.9748208 | K17: 913.8943172 | L17: 932.1722035
A18: Landscape Maint. | B18: 1175 | C18: 14100 | D18: =C18*(1+$H$3) -> 14382 | E18: 14669.64 | F18: 14963.0328 | G18: 15262.29346 | H18: 15567.53933 | I18: 15878.89011 | J18: 16196.46791 | K18: 16520.39727 | L18: 16850.80522
A19: Pest Control | B19: 64 | C19: 768 | D19: =C19*(1+$H$3) -> 783.36 | E19: 799.0272 | F19: 815.007744 | G19: 831.3078989 | H19: 847.9340569 | I19: 864.892738 | J19: 882.1905928 | K19: 899.8344046 | L19: 917.8310927
A20: Utilities
A21: Water/Sewer/Irrigation | B21: =C21/12 -> 2458.333333 | C21: 29500 | D21: =C21*(1+$H$3) -> 30090 | E21: 30691.8 | F21: 31305.636 | G21: 31931.74872 | H21: 32570.38369 | I21: 33221.79137 | J21: 33886.2272 | K21: 34563.95174 | L21: 35255.23077
A22: Gas | B22: =C22/12 -> 1000 | C22: 12000 | D22: =C22*(1+$H$3) -> 12240 | E22: 12484.8 | F22: 12734.496 | G22: 12989.18592 | H22: 13248.96964 | I22: 13513.94903 | J22: 13784.22801 | K22: 14059.91257 | L22: 14341.11082
A23: Telephone/Internet | B23: 363 | C23: 4356 | D23: =C23*(1+$H$3) -> 4443.12 | E23: 4531.9824 | F23: 4622.622048 | G23: 4715.074489 | H23: 4809.375979 | I23: 4905.563498 | J23: 5003.674768 | K23: 5103.748264 | L23: 5205.823229
A25: Management | B25: =C25/12 -> 3600 | C25: 43200 | D25: =C25*(1+$H$3) -> 44064 | E25: 44945.28 | F25: 45844.1856 | G25: 46761.06931 | H25: 47696.2907 | I25: 48650.21651 | J25: 49623.22084 | K25: 50615.68526 | L25: 51627.99896
A27: Total Expenses | B27: =C27/12 -> 47064.83333 | C27: =SUM(C10:C26) -> 564778 | D27: =SUM(D10:D26) -> 576073.56 | E27: 587595.0312 | F27: 599346.9318 | G27: 611333.8705 | H27: 623560.5479 | I27: 636031.7588 | J27: 648752.394 | K27: 661727.4419 | L27: 674961.9907
A29: Net Operating Income | B29: =C29/12 -> 96022.16667 | C29: =C7-C27 -> 1152266 | D29: =D7-D27 -> 1175311.32 | E29: 1198817.546 | F29: 1222793.897 | G29: 1247249.775 | H29: 1272194.771 | I29: 1297638.666 | J29: 1323591.44 | K29: 1350063.268 | L29: 1377064.534
A31: CAP Rate | C31: =C29/$C$3 -> 0.05009852174 | D31: 0.05110049217 | E31: 0.05212250202 | F31: 0.05316495206 | G31: 0.0542282511 | H31: 0.05531281612 | I31: 0.05641907244 | J31: 0.05754745389 | K31: 0.05869840297 | L31: 0.05987237103
